Cogmind - Beta 13 *** ADVENTURER MODE // 2024.04.01 @ 15:59:08 Player: look at yourself Result: Destroyed by Autobeam Turret with Autobeam Performance ------------- Evolutions (0) 0 Regions Visited (3) 600 Robots Destroyed (17) 85 Value Destroyed (448) 448 Prototype IDs (5) 100 Alien Tech Used (0) 0 Bonus (0) 0 TOTAL SCORE: 1233 Bonus ------- None Cogmind --------- Core Integrity 0/250 Matter 300/300 Energy 98/100 System Corruption 0% Temperature Cool (24) Movement Core (50) Location -10/Subcaves Parts ------- > --- POWER (1) -------- (None) > --- PROPULSION (2) --- (None) > --- UTILITY (2) ------ (None) > --- WEAPON (2) ------- (None) > --- INVENTORY (5) ---- Scrap Shield Plasma Cutter Peak State ------------ > --- POWER ------------ Light Nuclear Core > --- PROPULSION ------- Hover Unit Hover Unit > --- UTILITY ---------- Scrap Shield > --- WEAPON ----------- Light Assault Rifle Light Cannon > --- INVENTORY -------- Plasma Cutter [Rating: 11] Favorites ----------- Power Light Nuclear Core Engine Light Ion Engine Power Core Light Nuclear Core Propulsion Hover Unit Wheel Compact Wheel Hover Unit Hover Unit Utility Transport Network Coupler Processor Transport Network Coupler Protection Scrap Shield Weapon Light Assault Rifle Energy Gun EM Pulse Gun Energy Cannon Light EM Pulse Cannon Ballistic Gun Light Assault Rifle Ballistic Cannon Light Cannon Special Weapon Plasma Cutter Build | -11 -10 -10 -10 ------- Run | Yrd Mat Min Sub Slots Evolved . | . . . . Power . | . . . . Propulsion . | . . . . Utility . | . . . . Weapon . | . . . . Parts Attached 16 | 5 8 2 1 Power 2 | 1 1 . . Engine 1 | 1 . . . Core 1 | . 1 . . Reactor . | . . . . Propulsion 6 | 2 3 1 . Treads . | . . . . Leg . | . . . . Wheel 3 | 2 1 . . Hover 3 | . 2 1 . Flight . | . . . . Utility 2 | . 1 . 1 Device . | . . . . Storage . | . . . . Processor 1 | . 1 . . Hackware . | . . . . Protection 1 | . . . 1 Artifact . | . . . . Weapon 6 | 2 3 1 . Energy Gun 1 | 1 . . . Energy Cannon 1 | . 1 . . Ballistic Gun 1 | 1 . . . Ballistic Cannon 2 | . 1 1 . Launcher . | . . . . Special Weapon 1 | . 1 . . Impact Weapon . | . . . . Slashing Weapon . | . . . . Piercing Weapon . | . . . . Special Melee Weapon . | . . . . Unidentified Prototypes . | . . . . Parts Lost 7 | . 2 . 5 Power 2 | . 1 . 1 Propulsion 2 | . . . 2 Utility . | . . . . Weapon 3 | . 1 . 2 Highest Loss Streak 3 | . 2 . 3 To Critical Strikes . | . . . . Average Slot Usage (%) 74 | . 74 85 41 Engine 1 | . 3 . . Core 9 | . 7 14 3 Wheel 6 | . 12 . . Hover 20 | . 15 28 17 Processor 9 | . 9 14 . Energy Gun 1 | . 3 . . Ballistic Gun 14 | . 14 14 14 Ballistic Cannon 7 | . 2 14 5 Special Weapon 2 | . 4 . . Naked Turns 1 | . . . 1 Heaviest Build 10 | 6 10 9 9 Greatest Support 32 | 32 32 12 12 Greatest Overweight (x) 1 | 1 . . 1 Average Overweight (x) . | . . . . Largest Inventory Capacity 5 | 5 5 5 5 Average Capacity 5 | 5 5 5 5 Most Carried 4 | 3 4 2 3 Average Carried 1 | . 1 1 2 Final Capacity 5 | 5 5 5 5 Final Carried 3 | . 2 1 3 Class Distribution -------------------- 100% | Mutant Dominant Class ---------------- Mutant | -10/Materials Mutant | -10/Mines Mutant | -10/Subcaves Resources | -11 -10 -10 -10 ----------- Run | Yrd Mat Min Sub Matter Collected 426 | 121 235 70 . Remotely . | . . . . Salvage Created 710 | . 564 146 . Parts 42 | . 37 5 . Haulers Intercepted 2 | . 2 . . Recyclers Shooed . | . . . . Parts Field Recycled . | . . . . Retrieved Matter . | . . . . Parts Self-Destructed 5 | . . . 5 Prevented . | . . . . Kills | -11 -10 -10 -10 ------- Run | Yrd Mat Min Sub Combat Hostiles Destroyed 13 | . 9 4 . Guns 6 | . 6 . . Cannons 5 | . 1 4 . AOE 2 | . 2 . . Classes Destroyed 5 | . 5 . . Hauler 2 | . 2 . . Recycler 1 | . 1 . . Watcher 1 | . 1 . . Swarmer 3 | . 3 . . Grunt 10 | . 6 4 . Best Kill Streak 4 | . 4 2 . Combat Bots Only 4 | . 4 2 . Max Kills in Single Turn 1 | . 1 1 . Gunslinging . | . . . . Exploded 1 | . 1 . . Melee . | . . . . Uniques/NPCs Destroyed . | . . . . Combat | -11 -10 -10 -10 -------- Run | Yrd Mat Min Sub Hostile Shots Fired 94 | . 29 10 55 Missed 31 | . 11 2 18 Damage Taken 753 | . 202 74 477 Core 253 | . 8 30 215 Absorbed by Shields . | . . . . Ignored by Resistances 222 | . 59 23 140 Core Remaining (%) 100 | 100 . . . Volleys Fired 58 | . 48 10 . Largest 2 | . 2 2 . Hottest 76 | . 76 55 . Shots Fired 82 | . 62 20 . Gun 62 | . 52 10 . Cannon 13 | . 3 10 . Launcher . | . . . . Special 7 | . 7 . . Kinetic 61 | . 41 20 . Thermal 7 | . 7 . . Explosive . | . . . . Electromagnetic 14 | . 14 . . Robot Hit Streak 17 | . 17 15 . Robot Miss Streak 3 | . 3 1 . Penetration Max . | . . . . Secondary Targets . | . . . . Shots Hit Robots 64 | . 45 19 . Core Hits 34 | . 26 8 . Critical Kills . | . . . . Critical Parts Destroyed . | . . . . Critical Strikes 1 | . . 1 . Blast 1 | . . 1 . Melee Attacks . | . . . . Impact . | . . . . Slashing . | . . . . Piercing . | . . . . Sneak Attacks . | . . . . Combat Hostiles . | . . . . Follow-up Attacks . | . . . . Damage Inflicted 832 | . 605 227 . Guns 438 | . 361 77 . Cannons 219 | . 69 150 . Explosions 141 | . 141 . . Melee . | . . . . Ramming 4 | . 4 . . Kinetic 484 | . 257 227 . Thermal 171 | . 171 . . Explosive . | . . . . Electromagnetic 173 | . 173 . . Impact . | . . . . Slashing . | . . . . Piercing . | . . . . Highest Corruption . | . . . . Average Corruption . | . . . . Corruption Purged . | . . . . Corruption Blocked . | . . . . Overload Shots . | . . . . Overflow Damage . | . . . . Projectiles . | . . . . Explosions . | . . . . Melee . | . . . . Knockbacks . | . . . . Impact . | . . . . Kinetic . | . . . . Secondary . | . . . . Self-Inflicted Damage 42 | . 42 . . Shots 1 | . 1 . . Rammed 1 | . 1 . . Targets Rammed 1 | . 1 . . Kicked . | . . . . Crushed . | . . . . Highest Temperature 113 | . 90 113 . Average Temperature 35 | . 30 43 . Received Heat Transfer 294 | . 105 54 135 Siege Activations . | . . . . Robots Corrupted . | . . . . Combat Hostiles . | . . . . Parts Fried . | . . . . Impact Corruptions . | . . . . Robots Melted . | . . . . Combat Hostiles . | . . . . Parts Melted 1 | . 1 . . Heat Transferred 211 | . 211 . . Parts Sabotaged . | . . . . Parts Stolen . | . . . . Parts Stripped . | . . . . Power Chain Reactions 2 | . 2 . . Alert | -11 -10 -10 -10 ------- Run | Yrd Mat Min Sub Peak Influence 190 | . 190 52 . Initial 2 | . . 2 . Average 44 | . 61 26 . Maximum Alert Level . | . . . . Low Security (%) 100 | 100 100 100 . Level 1 . | . . . . Level 2 . | . . . . Level 3 . | . . . . Level 4 . | . . . . Level 5 . | . . . . High Security . | . . . . Max Security . | . . . . Squads Dispatched . | . . . . Investigation . | . . . . Extermination . | . . . . Reinforcement . | . . . . Assault . | . . . . Garrison . | . . . . Intercept . | . . . . Searches Triggered . | . . . . Construction Impeded . | . . . . Haulers Reinforced . | . . . . Active Scanning Responses . | . . . . Cargo Convoy Interrupts . | . . . . Stealth | -11 -10 -10 -10 --------- Run | Yrd Mat Min Sub Distress Signals 1 | . 1 . . Communications Jammed . | . . . . Distress Signals . | . . . . Times Spotted 41 | . 13 4 24 Peak Tracking Total 7 | . 4 2 7 Tactical Retreats 6 | . . . 6 Traps | -11 -10 -10 -10 ------- Run | Yrd Mat Min Sub Traps Triggered 1 | . 1 . . Indirectly . | . . . . Trap Hack Attempts . | . . . . Triggered . | . . . . Disarmed . | . . . . Reprogrammed . | . . . . Reused . | . . . . Traps Extracted . | . . . . Installed . | . . . . Triggered . | . . . . Machines | -11 -10 -10 -10 ---------- Run | Yrd Mat Min Sub Machines Disabled . | . . . . Max in Single Turn . | . . . . Machines Repaired . | . . . . Machines Dismantled 3 | . 3 . . Machines Sabotaged . | . . . . Overloaded Fab Kills . | . . . . Hacking | -11 -10 -10 -10 --------- Run | Yrd Mat Min Sub Machines Accessed 9 | . 8 1 . Terminals 9 | . 8 1 . Fabricators . | . . . . Repair Stations . | . . . . Recycling Units . | . . . . Scanalyzers . | . . . . Garrison Access . | . . . . Total Hacks 38 | . 31 7 . Successful 28 | . 24 4 . Failed 10 | . 7 3 . Catastrophic . | . . . . Database Lockouts . | . . . . Manual 12 | . 6 6 . Terminals 38 | . 31 7 . Fabricators . | . . . . Repair Stations . | . . . . Recycling Units . | . . . . Scanalyzers . | . . . . Garrison Access . | . . . . Terminal Hacks 23 | . 20 3 . Record 1 | . 1 . . Robot Analysis 1 | . 1 . . Prototype ID Bank 4 | . 3 1 . Level Access Points 1 | . 1 . . Branch Access Points 1 | . 1 . . Emergency Access Points 3 | . 3 . . Terminal Index 1 | . 1 . . Unreport Threat 3 | . 2 1 . Locate Traps 1 | . 1 . . Hauler Manifests 2 | . 2 . . Registered Components 1 | . 1 . . Zone Layout 4 | . 3 1 . Fabricator Hacks . | . . . . Repair Station Hacks . | . . . . Recycling Unit Hacks . | . . . . Scanalyzer . | . . . . Garrison Access Hacks . | . . . . Unauthorized Hacks 5 | . 4 1 . Terminals 5 | . 4 1 . Botnet 5 | . 4 1 . Fabricators . | . . . . Repair Stations . | . . . . Recycling Units . | . . . . Scanalyzers . | . . . . Garrison Access . | . . . . Data Cores Recovered . | . . . . Used . | . . . . Hacking Detections 8 | . 7 1 . Full Trace Events . | . . . . Feedback Events . | . . . . Feedback Blocked . | . . . . Robot Schematics Acquired . | . . . . Robots Built . | . . . . Authchips . | . . . . Time . | . . . . Total Robot Build Rating . | . . . . Part Schematics Acquired . | . . . . Parts Built . | . . . . Authchips . | . . . . Time . | . . . . Total Part Build Rating . | . . . . Parts Repaired . | . . . . Time . | . . . . Parts Recycled . | . . . . Recycled Matter . | . . . . Retrieved Matter . | . . . . Retrieved Components . | . . . . Parts Scanalyzed . | . . . . Part Schematics Acquired . | . . . . Parts Damaged . | . . . . Bothacking | -11 -10 -10 -10 ------------ Run | Yrd Mat Min Sub Used RIF Installer . | . . . . Robots Hacked . | . . . . Non-combat . | . . . . Combat . | . . . . Robot Hacks Applied . | . . . . Relay Couplers Released . | . . . . Fabnet Peak Effective % . | . . . . Robots Rewired . | . . . . Allies Hacked . | . . . . Hacks Repelled . | . . . . Allies | -11 -10 -10 -10 -------- Run | Yrd Mat Min Sub Total Allies . | . . . . Largest Group . | . . . . Highest-Rated Group . | . . . . Highest-Rated Ally . | . . . . Total Orders . | . . . . Ally Attacks . | . . . . Total Damage . | . . . . Kills . | . . . . Allies Corrupted . | . . . . Allies Melted . | . . . . Intel | -11 -10 -10 -10 ------- Run | Yrd Mat Min Sub Robot Analysis Total 1 | . 1 . . Derelict Logs Recovered 5 | . . 3 2 Drone Launches . | . . . . Drone Recoveries . | . . . . Exploration | -11 -10 -10 -10 ------------- Run | Yrd Mat Min Sub Turns Passed 1845 | 54 881 674 236 Spaces Moved 2270 | 55 817 1042 356 Core 34 | 30 . . 4 Treads . | . . . . Legs . | . . . . Wheels 325 | 25 300 . . Hover 1911 | . 517 1042 352 Flight . | . . . . Fastest Speed 50 | 50 56 56 50 Average Speed 62 | 80 72 56 59 Slowest Speed 120 | 100 100 56 120 Overloaded Moves . | . . . . Propulsion Burnouts . | . . . . Robots Hopped . | . . . . Cave-ins Triggered . | . . . . Exploration Rate (%) 58 | 4 91 101 38 Regions Visited 3 Branch Regions 2 Pre-discovered Areas 1 | . . . 1 Known Exits Taken 1 | . 1 . . Unknown Exits Taken 2 | 1 . 1 . Scrap Searched 1 | . . 1 . Spaces Dug . | . . . . Terrain Destroyed 6 | . 6 . . Melee . | . . . . Projectile . | . . . . AOE 6 | . 6 . . Terrain Rammed . | . . . . Walls Destroyed . | . . . . Machines Disabled . | . . . . Actions | -11 -10 -10 -10 --------- Run | Yrd Mat Min Sub Total 2533 | 64 973 1113 383 Wait 128 | . 46 59 23 Move 2267 | 54 816 1041 356 Hop . | . . . . Pick Up 15 | 5 9 . 1 Fast Attach . | . . . . Attach 13 | 5 7 . 1 Detach 3 | . 2 . 1 Swap 3 | . 1 2 . Drop 6 | . 4 1 1 Fire 58 | . 48 10 . Melee . | . . . . Ram 1 | . 1 . . Kick . | . . . . Crush . | . . . . Escape Stasis . | . . . . Rewire 1 | . 1 . . Trap . | . . . . Miscellaneous 38 | . 38 . . Route ------- -11/Scrapyard -10/Materials (discovered 5 exits: *Mat x3 / *Min x2) -10/Mines (discovered 3 exits: *Mat x2 / [*Sub]) -10/Subcaves (discovered 1 exit: [*Rec]) History --------- Turn | Location | Event 8 | -11/Scrapyard | Discovered new exit (range 15) 55 | -11/Scrapyard | Entered Materials 161 | -10/Materials | Discovered new exit (range 15) 303 | -10/Materials | Build established: Mutant 387 | -10/Materials | Identified exit to Mines 399 | -10/Materials | Discovered new exit (range 15) 846 | -10/Materials | Discovered new exit (range 3) 897 | -10/Materials | Identified exit to Materials 936 | -10/Materials | Entered Mines 966 | -10/Mines | Learned Materials terminal intel 969 | -10/Mines | Met a Derelict bent on vengeance 1109 | -10/Mines | Discovered exit to Materials (range 9) 1257 | -10/Mines | Discovered exit to Materials (range 6) 1405 | -10/Mines | Learned 2 Materials zone layouts 1604 | -10/Mines | Discovered new exit (range 12) 1610 | -10/Mines | Entered Subcaves 1692 | -10/Subcaves | Ambushed by swarm of Subdwellers 1705 | -10/Subcaves | Core integrity fell below 50% 1735 | -10/Subcaves | Lost 3 parts (1p1n1w) 1781 | -10/Subcaves | Learned location of Zion (-6) 1781 | -10/Subcaves | Met a Zionite searching for "candidates" 1783 | -10/Subcaves | Learned Materials emergency access door positions 1840 | -10/Subcaves | Discovered new exit (range 14) 1843 | -10/Subcaves | Core integrity fell below 20% 1846 | -10/Subcaves | Destroyed by Autobeam Turret with Autobeam Last Messages --------------- 01674_ Hover Unit destroyed. 01676_ Lgt. Nuclear Core destroyed. A mess of Twisted Machinery falls from the cavern ceiling. 68-LK9(R) comes tumbling into view. 01704_ Lgt. Cannon destroyed. 01707_ Y-45 Defender destroyed. 01730_ 79-L62(u) builds Twisted Machinery. 01765_ PS-TIF(R): "WEHOME!" 01775_ 8B-7GS(z): "She is not going to be happy we haven't found any suitable candidates yet." 01781_ 8B-7GS(z): "Hey you! It's really dangerous down here, I feel that you could die at any moment. For your health and safety might I suggest a trip to Zion?" World map updated: -6/Zion. 01783_ Acquired derelict log, extracted data. Data stored: Materials emergency access points. 01840_ EXIT=FOUND 01842_ S-10 Pest destroyed. 01844_ Hover Unit destroyed. 01845_ Lgt. Assault Rifle destroyed. Map ----- +----------------------------------------------------+ | ????????????????????????????????????????????## | | ???????????????????????????????????????###?## | | ????????????????? ???????????????????# ### | | ????????????????# ??????????????????? ## | | ????????????????# ?????????????????? | | ????????????????# ##????????????????# ## | | ?????????????????# #??????????????## #??# | | ??????????????????# #??????????#### #???# | | ?????????????????## ##??????### #???? | | ?????????????????#"" ##????## ##??? | | ?????????????????#"" #????# #??? | | ??????????????????"" ####### #???? | | ?????????????????????# # # ##???? | | ??????????????????????# ## ##????? | | ??????????????????????# ## ##????# | | ??????????????????????# # ## #### ###??# | | ??????????????????????# ##### ### #### | | ??????????????????????# #???# | | ??????????????????????## #???## | | ???????????????????????#[ =#????# # | | ????????????????????####s*%####?## ## | | ????????????????????#" ==*[s "#??## ## ##? | | ????????????????????# #???## ##### ##?? | | ????????????????????# #????###???# ##??? | | ????????????????????#" t t "#??????????# #???? | | ????????????????????#" "@" "#??????????# ??? | | ????????????????????#"""" """"#????????? ?? | | ????????????????????#####<#####???????? ###? | | ????????????????????????###??????????? #??? | | ????????????????????????????????????? ##??? | | ???????????????????????????????????? #???? | | ??????????????????????????????????? ## #???? | | ??????????????????????????????????#??# ???? | | ????????????????????????????????????? ???? | | ???????????????????????????????????? ???? | | ????????????????????????????????????? ???? | | ??????????????????????????????????????? ??? | | ???????????????????????????????????????? ???? | | ?????????????????????????????????????????????????? | | ?????????????????????????????????????????????????? | | ?????????????????????????????????????????????????? | | ?????????????????????????????????????????????????? | | ?????????????????????????????????????????????????? | | ?????????????????????????????????????????????????? | | ?????????????????????????????????????????????????? | | ?????????????????????????????????????????????????? | | ?????????????????????????????????????????????????? | | ?????????????????????????????????????????????????? | | ?????????????????????????????????????????????????? | | ?????????????????????????????????????????????????? | +----------------------------------------------------+ Best States ------------- Heat Dissipation 25 Energy Generation 14 Energy Capacity 160 Matter Stores 300 Matter Capacity 300 Sight Range 16 Terrain Scan Density 10 Resistance: KI 20 Resistance: TH 20 Resistance: EX 20 Resistance: EM 20 Resistance: I 20 Resistance: S 20 Resistance: P 20 Evasion (%) 53 Offensive Hacking 10 Item Schematics ----------------- None Robot Schematics ------------------ None Fabricated ------------ Nothing Alien Tech Used ----------------- None Achievements -------------- None Challenges ------------ None Game ------ Seed TachyonMomentumTriangulator Manual? 0 Play Time 00:18:47 Cumulative 130.0 hours Start 2024.04.01 @ 15:36:40 End 2024.04.01 @ 15:59:08 Sessions 1 Manual Loads 0 Difficulty Adventurer Special Mode None Game No. 40 Rogue 0 Adventurer 40 Explorer 0 Win Type - Total 8 Types 5/2/1/0/0/0/0/0/0 Lore% 54 Gallery% 62 Achievement% 61 Wizard Run 0 Options --------- Layout 0 ASCII 0 Keyboard 0 Movement Arrows Keybinds 0 Fullscreen 1 Font 18/SmallcapsGlow Map View 76x50 Zoom Use 0% Tactical HUD 1 Map Filters NONE Filters NONE Steam 1 RUN: d95ea64b-1525-495e-aa44-b2951aab2f24